fUST/lending_fUST_20250427
["ID","MTS","AMOUNT","RATE_DAILY","PERIOD"]
[359118450,1745715047085,-285.28621822,0.0001726,2]
[359118451,1745715047234,-114.71378178,0.0001726,2]
[359118452,1745715047244,-455.8,0.0001726,2]
[359118453,1745715047254,-400.0,0.0001726,2]
[359118454,1745715047263,-400.0,0.0001726,2]
[359118455,1745715047273,-400.0,0.0001726,2]
[359118456,1745715047282,-400.0,0.0001726,2]
[359118457,1745715047292,-400.0,0.0001726,2]
[359118458,1745715047301,-426.21,0.0001726,2]
[359118459,1745715047311,-3.27621822,0.0001726,2]
[359118462,1745715047323,-396.72378178,0.0001726,2]
[359118463,1745715047333,-300.0,0.0001726,2]
[359118464,1745715047343,-400.0,0.0001726,2]
[359118465,1745715047354,-400.0,0.0001726,2]
[359118466,1745715047363,-400.0,0.0001726,2]
[359118467,1745715047372,-386.76,0.0001726,2]
[359118468,1745715047382,-396.86621537,0.0001726,2]
[359118469,1745715047391,-400.0,0.0001726,2]
[359118470,1745715047403,-934.6,0.0001726,2]
[359118471,1745715047412,-400.0,0.0001726,2]
[359118472,1745715047423,-400.0,0.0001726,2]
[359118473,1745715047595,-400.0,0.0001726,2]
[359118474,1745715047605,-400.0,0.0001726,2]
[359118475,1745715047616,-400.0,0.0001726,2]
[359118476,1745715047625,-582.97,0.0001726,2]
[359118477,1745715047635,-928.51,0.0001726,2]
[359118478,1745715047645,-500.0,0.0001726,2]
[359118479,1745715047654,-400.0,0.0001726,2]
[359118480,1745715047665,-300.62,0.0001726,2]
[359118481,1745715047674,-400.0,0.0001726,2]
[359118482,1745715047684,-474.97,0.0001726,2]
[359118483,1745715047694,-451.65787072,0.0001726,2]
[359118484,1745715047704,-300.0,0.0001726,2]
[359118485,1745715047714,-400.0,0.0001726,2]
[359118486,1745715047723,-400.0,0.0001726,2]
[359118487,1745715047733,-400.0,0.0001726,2]
[359118488,1745715047742,-400.0,0.0001726,2]
[359118489,1745715047752,-500.0,0.0001726,2]
[359118490,1745715047762,-400.0,0.0001726,2]
[359118491,1745715047771,-300.0,0.0001726,2]
[359118492,1745715047781,-538.91,0.0001726,2]
[359118493,1745715047791,-400.0,0.0001726,2]
[359118494,1745715047800,-400.0,0.0001726,2]
[359118495,1745715047810,-400.0,0.0001726,2]
[359118496,1745715047820,-400.0,0.0001726,2]
[359118498,1745715047830,-505.12,0.0001726,2]
[359118499,1745715047840,-400.0,0.0001726,2]
[359118500,1745715047849,-200.0,0.0001726,2]
[359118501,1745715047859,-285.51,0.0001726,2]
[359118502,1745715047868,-400.0,0.0001726,2]
[359118503,1745715047878,-400.0,0.0001726,2]
[359118504,1745715047888,-400.0,0.0001726,2]
[359118505,1745715047898,-400.0,0.0001726,2]
[359118506,1745715047908,-400.0,0.0001726,2]
[359118507,1745715047918,-400.0,0.0001726,2]
[359118508,1745715047928,-400.0,0.0001726,2]
[359118509,1745715047938,-307.19,0.0001726,2]
[359118510,1745715047947,-500.0,0.0001726,2]
[359118511,1745715047957,-400.0,0.0001726,2]
[359118512,1745715047966,-400.0,0.0001726,2]
[359118513,1745715047976,-400.0,0.0001726,2]
[359118514,1745715047985,-400.0,0.0001726,2]
[359118515,1745715047995,-200.0,0.0001726,2]
[359118516,1745715048006,-400.0,0.0001726,2]
[359118517,1745715048016,-400.0,0.0001726,2]
[359118518,1745715048026,-412.83,0.0001726,2]
[359118519,1745715048037,-500.0,0.0001726,2]
[359118520,1745715048046,-400.0,0.0001726,2]
[359118521,1745715048056,-400.0,0.0001726,2]
[359118522,1745715048065,-400.0,0.0001726,2]
[359118523,1745715048075,-400.0,0.0001726,2]
[359118524,1745715048084,-494.39700661,0.00017341,2]
[359118525,1745715048093,-328.37456715,0.00017434,2]
[359118526,1745715048103,-188.91,0.00017534,2]
[359118527,1745715048112,-500.0,0.00017534,2]
[359118528,1745715048121,-400.0,0.00017534,2]
[359118529,1745715048131,-400.0,0.00017534,2]
[359118530,1745715048141,-400.0,0.00017534,2]
[359118531,1745715048151,-400.0,0.00017534,2]
[359118532,1745715048161,-200.0,0.00017534,2]
[359118533,1745715048172,-249.35948457,0.00017534,2]
[359118534,1745715048183,-200.0,0.00017534,2]
[359118535,1745715048192,-400.0,0.00017534,2]
[359118536,1745715048201,-189.74,0.00017534,2]
[359118537,1745715048211,-500.0,0.00017534,2]
[359118538,1745715048220,-189.04,0.00017534,2]
[359118539,1745715048231,-400.0,0.00017534,2]
[359118540,1745715048240,-400.0,0.00017534,2]
[359118541,1745715048249,-400.0,0.00017534,2]
[359118542,1745715048262,-319.00365676,0.00017534,2]
[359118543,1745715048271,-200.0,0.00017534,2]
[359118544,1745715048280,-400.0,0.00017534,2]
[359118545,1745715048290,-400.0,0.00017534,2]
[359118546,1745715048299,-400.0,0.00017534,2]
[359118547,1745715048308,-500.0,0.00017534,2]
[359118548,1745715048318,-200.0,0.00017534,2]
[359118549,1745715048327,-400.0,0.00017534,2]
[359118550,1745715048337,-400.0,0.00017534,2]
[359118551,1745715048346,-400.0,0.00017534,2]
[359118552,1745715048355,-400.0,0.00017534,2]
[359118553,1745715048365,-400.0,0.00017534,2]
[359118554,1745715048375,-443.43,0.00017534,2]
[359118555,1745715048384,-327.78,0.00017534,2]
[359118556,1745715048393,-500.0,0.00017534,2]
[359118557,1745715048405,-326.06,0.00017534,2]
[359118558,1745715048415,-400.0,0.00017534,2]
[359118559,1745715048424,-200.0,0.00017534,2]
[359118560,1745715048433,-200.0,0.00017534,2]
[359118561,1745715048443,-545.88,0.00017534,2]
[359118562,1745715048453,-400.0,0.00017534,2]
[359118563,1745715048462,-400.0,0.00017534,2]
[359118564,1745715048472,-500.0,0.00017534,2]
[359118565,1745715048482,-400.0,0.00017534,2]
[359118566,1745715048491,-934.6,0.00017534,2]
[359118567,1745715048501,-400.0,0.00017534,2]
[359118568,1745715048510,-400.0,0.00017534,2]
[359118569,1745715048520,-400.0,0.00017534,2]
[359118570,1745715048529,-400.0,0.00017534,2]
[359118571,1745715048539,-200.0,0.00017534,2]
[359118572,1745715048549,-582.97,0.00017534,2]
[359118573,1745715048558,-928.51,0.00017534,2]
[359118574,1745715048567,-498.04,0.00017534,2]
[359118575,1745715048577,-325.59,0.00017534,2]
[359118576,1745715048587,-400.0,0.00017534,2]
[359118577,1745715048597,-400.0,0.00017534,2]
[359118578,1745715048607,-400.0,0.00017534,2]
[359118579,1745715048617,-400.0,0.00017534,2]
[359118580,1745715048628,-400.0,0.00017534,2]
[359118581,1745715048638,-400.0,0.00017534,2]
[359118582,1745715048649,-500.0,0.00017534,2]
[359118583,1745715048659,-400.0,0.00017534,2]
[359118584,1745715048670,-400.0,0.00017534,2]
[359118585,1745715048680,-400.0,0.00017534,2]
[359118586,1745715048690,-400.0,0.00017534,2]
[359118587,1745715048700,-400.0,0.00017534,2]
[359118588,1745715048710,-400.0,0.00017534,2]
[359118589,1745715048720,-400.0,0.00017534,2]
[359118590,1745715048730,-400.0,0.00017534,2]
[359118591,1745715048740,-400.0,0.00017534,2]
[359118592,1745715048750,-447.05,0.00017534,2]
[359118593,1745715048760,-542.98,0.00017534,2]
[359118594,1745715048770,-200.0,0.00017534,2]
[359118595,1745715048779,-400.0,0.00017534,2]
[359118596,1745715048789,-400.0,0.00017534,2]
[359118597,1745715048799,-400.0,0.00017534,2]
[359118598,1745715048809,-412.83,0.00017534,2]
[359118599,1745715048819,-400.0,0.00017534,2]
[359118600,1745715048829,-400.0,0.00017534,2]
[359118601,1745715048839,-400.0,0.00017534,2]
[359118602,1745715048849,-400.0,0.00017534,2]
[359118603,1745715048859,-464.42,0.00017534,2]
[359118604,1745715048868,-271.50896078,0.00017692,2]
[359118605,1745715048878,-500.0,0.00017773,2]
[359118606,1745715048887,-243.0935167,0.00017773,2]
[359118607,1745715048897,-500.0,0.00017773,2]
[359118608,1745715048907,-425.76,0.00017798,3]
[359118609,1745715048917,-236.11,0.00017808,2]
[359118610,1745715048926,-400.0,0.00017808,2]
[359118611,1745715048935,-468.17,0.00017808,2]
[359118612,1745715048945,-500.0,0.00017808,2]
[359118613,1745715048954,-400.0,0.00017808,2]
[359118614,1745715048963,-400.0,0.00017808,2]
[359118615,1745715048973,-373.8605618,0.00017808,2]
[359118616,1745715048983,-169.66,0.00017808,2]
[359118617,1745715048992,-400.0,0.00017808,2]
[359118618,1745715049002,-400.0,0.00017808,2]
[359118619,1745715049011,-400.0,0.00017808,2]
[359118620,1745715049021,-400.0,0.00017808,2]
[359118621,1745715049030,-400.0,0.00017808,2]
[359118622,1745715049039,-375.76,0.00017808,2]
[359118623,1745715049049,-400.0,0.00017808,2]
[359118624,1745715049059,-200.0,0.00017808,2]
[359118625,1745715049069,-157.45,0.00017808,2]
[359118626,1745715049079,-400.0,0.00017808,2]
[359118627,1745715049088,-200.0,0.00017808,2]
[359118628,1745715049098,-934.6,0.00017808,2]
[359118629,1745715049108,-400.0,0.00017808,2]
[359118630,1745715049118,-400.0,0.00017808,2]
[359118631,1745715049128,-238.66,0.00017808,2]
[359118632,1745715049138,-400.0,0.00017808,2]
[359118633,1745715049148,-582.97,0.00017808,2]
[359118634,1745715049158,-928.51,0.00017808,2]
[359118635,1745715049168,-200.0,0.00017808,2]
[359118636,1745715049178,-200.0,0.00017808,2]
[359118637,1745715049188,-400.0,0.00017808,2]
[359118638,1745715049198,-400.0,0.00017808,2]
[359118639,1745715049207,-200.0,0.00017808,2]
[359118640,1745715049217,-400.0,0.00017808,2]
[359118641,1745715049227,-400.0,0.00017808,2]
[359118642,1745715049236,-400.0,0.00017808,2]
[359118643,1745715049246,-229.39,0.00017808,2]
[359118644,1745715049256,-400.0,0.00017808,2]
[359118645,1745715049266,-400.0,0.00017808,2]
[359118646,1745715049276,-400.0,0.00017808,2]
[359118647,1745715049285,-400.0,0.00017808,2]
[359118648,1745715049314,-400.0,0.00017808,2]
[359118649,1745715049327,-412.83,0.00017808,2]
[359118650,1745715049336,-400.0,0.00017808,2]
[359118651,1745715049346,-440.02,0.00017808,2]
[359118652,1745715049356,-400.0,0.00017808,2]
[359118653,1745715049367,-400.0,0.00017808,2]
[359118654,1745715049376,-533.2,0.00018082,2]
[359118655,1745715049386,-208.80044939,0.00018082,2]
[359118656,1745715049397,-400.0,0.00018082,2]
[359118657,1745715049412,-331.32497663,0.00018082,2]
[359118658,1745715049423,-400.0,0.00018082,2]
[359118659,1745715049434,-400.0,0.00018082,2]
[359118660,1745715049444,-400.0,0.00018082,2]
[359118661,1745715049454,-400.0,0.00018082,2]
[359118662,1745715049463,-416.13,0.00018082,2]
[359118663,1745715049473,-934.6,0.00018082,2]
[359118664,1745715049482,-400.0,0.00018082,2]
[359118665,1745715049492,-582.97,0.00018082,2]
[359118666,1745715049502,-928.51,0.00018082,2]
[359118667,1745715049511,-400.0,0.00018082,2]
[359118668,1745715049521,-400.0,0.00018082,2]
[359118669,1745715049530,-400.0,0.00018082,2]
[359118670,1745715049539,-400.0,0.00018082,2]
[359118671,1745715049548,-400.0,0.00018082,2]
[359118672,1745715049558,-200.0,0.00018082,2]
[359118673,1745715049569,-400.0,0.00018082,2]
[359118674,1745715049578,-400.0,0.00018082,2]
[359118675,1745715049588,-376.5,0.00018082,2]
[359118676,1745715049597,-400.0,0.00018082,2]
[359118677,1745715049607,-412.83,0.00018082,2]
[359118678,1745715049617,-200.0,0.00018082,2]
[359118679,1745715049627,-400.0,0.00018082,2]
[359118680,1745715049637,-400.0,0.00018082,2]
[359118681,1745715049646,-433.09406335,0.00018334,2]
[359118682,1745715049656,-400.0,0.00018356,2]
[359118683,1745715049667,-300.0,0.00018356,2]
[359118684,1745715049677,-297.79,0.00018356,2]
[359118685,1745715049686,-378.07,0.00018356,2]
[359118686,1745715049696,-500.0,0.00018356,2]
[359118687,1745715049706,-934.6,0.00018356,2]
[359118688,1745715049716,-151.01,0.00018356,2]
[359118689,1745715049725,-582.97,0.00018356,2]
[359118690,1745715049735,-928.51,0.00018356,2]
[359118691,1745715049744,-400.0,0.00018356,2]
[359118692,1745715049754,-400.0,0.00018356,2]
[359118693,1745715049763,-400.0,0.00018356,2]
[359118694,1745715049773,-400.0,0.00018356,2]
[359118695,1745715049783,-400.0,0.00018356,2]
[359118696,1745715049793,-400.0,0.00018356,2]
[359118697,1745715049802,-400.0,0.00018356,2]
[359118698,1745715049812,-400.0,0.00018356,2]
[359118699,1745715049822,-412.83,0.00018356,2]
[359118700,1745715049832,-400.0,0.00018356,2]
[359118701,1745715049841,-400.0,0.00018356,2]
[359118702,1745715049851,-209.42717831,0.00018426,2]
[359118703,1745715049860,-400.0,0.0001863,2]
[359118704,1745715049869,-934.6,0.0001863,2]
[359118705,1745715049878,-582.97,0.0001863,2]
[359118706,1745715049887,-928.51,0.0001863,2]
[359118707,1745715049897,-400.0,0.0001863,2]
[359118708,1745715049906,-400.0,0.0001863,2]
[359118709,1745715049917,-400.0,0.0001863,2]
[359118710,1745715049927,-400.0,0.0001863,2]
[359118711,1745715049936,-400.0,0.0001863,2]
[359118712,1745715049945,-400.0,0.0001863,2]
[359118713,1745715049955,-400.0,0.0001863,2]
[359118714,1745715049965,-400.0,0.0001863,2]
[359118715,1745715049974,-412.83,0.0001863,2]
[359118716,1745715049983,-400.0,0.0001863,2]
[359118717,1745715049993,-400.0,0.0001863,2]
[359118718,1745715050002,-400.0,0.00018904,2]
[359118719,1745715050011,-934.6,0.00018904,2]
[359118720,1745715050020,-582.97,0.00018904,2]
[359118721,1745715050030,-928.51,0.00018904,2]
[359118722,1745715050040,-400.0,0.00018904,2]
[359118723,1745715050049,-400.0,0.00018904,2]
[359118724,1745715050058,-400.0,0.00018904,2]
[359118725,1745715050068,-400.0,0.00018904,2]
[359118726,1745715050078,-400.0,0.00018904,2]
[359118727,1745715050087,-400.0,0.00018904,2]
[359118728,1745715050096,-400.0,0.00018904,2]
[359118729,1745715050106,-400.0,0.00018904,2]
[359118730,1745715050115,-412.83,0.00018904,2]
[359118731,1745715050125,-400.0,0.00018904,2]
[359118732,1745715050134,-400.0,0.00018904,2]
[359118733,1745715050144,-500.0,0.00019062,2]
[359118734,1745715050154,-1000.0,0.00019152,2]
[359118735,1745715050163,-400.0,0.00019178,2]
[359118736,1745715050174,-934.6,0.00019178,2]
[359118737,1745715050184,-582.97,0.00019178,2]
[359118738,1745715050194,-928.51,0.00019178,2]
[359118739,1745715050203,-400.0,0.00019178,2]
[359118740,1745715050212,-400.0,0.00019178,2]
[359118741,1745715050222,-400.0,0.00019178,2]
[359118742,1745715050231,-400.0,0.00019178,2]
[359118743,1745715050240,-400.0,0.00019178,2]
[359118744,1745715050249,-409.76318024,0.00019178,2]
[359118745,1745715050258,-400.0,0.00019178,2]
[359118746,1745715050267,-400.0,0.00019178,2]
[359118747,1745715050277,-412.83,0.00019178,2]
[359118748,1745715050286,-400.0,0.00019178,2]
[359118749,1745715050295,-400.0,0.00019178,2]
[359118750,1745715050304,-300.0,0.00019178,2]
[359118751,1745715050314,-500.0,0.00019273,2]
[359118752,1745715050323,-500.0,0.00019273,2]
[359118753,1745715050333,-500.0,0.00019273,2]
[359118754,1745715050343,-500.0,0.00019273,2]
[359118755,1745715050352,-500.0,0.00019273,2]
[359118756,1745715050371,-500.0,0.00019273,2]
[359118757,1745715050380,-500.0,0.000193,2]
[359118758,1745715050389,-400.0,0.00019452,2]
[359118759,1745715050398,-934.6,0.00019452,2]
[359118760,1745715050410,-582.97,0.00019452,2]
[359118761,1745715050421,-928.51,0.00019452,2]
[359118762,1745715050430,-400.0,0.00019452,2]
[359118763,1745715050440,-400.0,0.00019452,2]
[359118764,1745715050450,-400.0,0.00019452,2]
[359118765,1745715050459,-400.0,0.00019452,2]
[359118766,1745715050469,-400.0,0.00019452,2]
[359118767,1745715050480,-400.0,0.00019452,2]
[359118768,1745715050490,-400.0,0.00019452,2]
[359118769,1745715050500,-412.83,0.00019452,2]
[359118770,1745715050510,-400.0,0.00019452,2]
[359118771,1745715050520,-400.0,0.00019452,2]
[359118772,1745715050529,-545.0,0.00019487,2]
[359118773,1745715050539,-292.393,0.00019487,2]
[359118774,1745715050549,-507.07321883,0.00019527,2]
[359118775,1745715050558,-209.42717831,0.00019689,2]
[359118776,1745715050568,-400.0,0.00019726,2]
[359118777,1745715050578,-934.6,0.00019726,2]
[359118778,1745715050588,-582.97,0.00019726,2]
[359118779,1745715050597,-928.51,0.00019726,2]
[359118780,1745715050606,-400.0,0.00019726,2]
[359118781,1745715050615,-319.97907973,0.00019726,2]
[359118782,1745715050626,-400.0,0.00019726,2]
[359118783,1745715050636,-400.0,0.00019726,2]
[359118784,1745715050646,-400.0,0.00019726,2]
[359118785,1745715050655,-400.0,0.00019726,2]
[359118786,1745715050665,-400.0,0.00019726,2]
[359118787,1745715050676,-412.83,0.00019726,2]
[359118788,1745715050686,-400.0,0.00019726,2]
[359118789,1745715050695,-400.0,0.00019726,2]
[359118790,1745715050705,-254.18601093,0.00019955,2]
[359118791,1745715050714,-400.0,0.0002,2]
[359118792,1745715050724,-934.6,0.0002,2]
[359118793,1745715050734,-582.97,0.0002,2]
[359118794,1745715050743,-928.51,0.0002,2]
[359118795,1745715050753,-400.0,0.0002,2]
[359118796,1745715050762,-400.0,0.0002,2]
[359118797,1745715050773,-400.0,0.0002,2]
[359118798,1745715050783,-400.0,0.0002,2]
[359118799,1745715050794,-400.0,0.0002,2]
[359118800,1745715050804,-201.93957842,0.0002,2]
[359118801,1745715050815,-412.83,0.0002,2]
[359118802,1745715050825,-2000.0,0.0002,4]
[359118803,1745715050835,-400.0,0.0002,2]
[359118804,1745715050846,-400.0,0.0002,2]
[359118805,1745715050990,-1000.0,0.00020068,2]
[359118806,1745715051000,-400.0,0.00020273,2]
[359118807,1745715051010,-934.6,0.00020273,2]
[359118808,1745715051019,-582.97,0.00020273,2]
[359118809,1745715051029,-928.51,0.00020273,2]
[359118810,1745715051039,-400.0,0.00020273,2]
[359118811,1745715051049,-400.0,0.00020273,2]
[359118812,1745715051058,-400.0,0.00020273,2]
[359118813,1745715051068,-400.0,0.00020273,2]
[359118814,1745715051078,-400.0,0.00020273,2]
[359118815,1745715051088,-412.83,0.00020273,2]
[359118816,1745715051098,-400.0,0.00020273,2]
[359118817,1745715051108,-400.0,0.00020273,2]
[359118818,1745715051118,-400.0,0.00020547,2]
[359118819,1745715051127,-934.6,0.00020547,2]
[359118820,1745715051137,-582.97,0.00020547,2]
[359118821,1745715051147,-928.51,0.00020547,2]
[359118822,1745715051156,-400.0,0.00020547,2]
[359118823,1745715051167,-220.53504241,0.00020547,2]
[359118824,1745715051177,-400.0,0.00020547,2]
[359118825,1745715051186,-244.78580769,0.00020547,2]
[359118826,1745715051196,-476.02056036,0.00020547,2]
[359118827,1745715051206,-412.83,0.00020547,2]
[359118828,1745715051215,-400.0,0.00020547,2]
[359118829,1745715051224,-400.0,0.00020547,2]
[359118830,1745715051233,-181.036057,0.00020568,2]
[359118831,1745715051242,-470.3414634,0.00020601,2]
[359118832,1745715051252,-634.0,0.000207,2]
[359118833,1745715051261,-253.2285887,0.0002079,2]
[359118834,1745715051270,-400.0,0.00020821,2]
[359118835,1745715051279,-934.6,0.00020821,2]
[359118836,1745715051288,-582.97,0.00020821,2]
[359118837,1745715051298,-928.51,0.00020821,2]
[359118838,1745715051307,-400.0,0.00020821,2]
[359118839,1745715051316,-400.0,0.00020821,2]
[359118840,1745715051326,-412.83,0.00020821,2]
[359118841,1745715051336,-400.0,0.00020821,2]
[359118842,1745715051345,-400.0,0.00020821,2]
[359118843,1745715051355,-600.0,0.00020822,2]
[359118844,1745715051364,-209.42717831,0.00020953,3]
[359118845,1745715051374,-908.20348924,0.00021,2]
[359118846,1745715051383,-487.83877722,0.00021,5]
[359118847,1745715051392,-160.0,0.00021,5]
[359118848,1745715051402,-150.0,0.00021,5]
[359118849,1745715051414,-318.9499,0.00021,2]
[359118850,1745715051426,-2000.0,0.00021,4]
[359118851,1745715051435,-157.45,0.00021,2]
[359118852,1745715051445,-157.45,0.00021,2]
[359118853,1745715051455,-494.39700661,0.00021082,2]
[359118854,1745715051465,-210.92131655,0.00021095,2]
[359118855,1745715051474,-934.6,0.00021095,2]
[359118856,1745715051484,-582.97,0.00021095,2]
[359118857,1745715051493,-928.51,0.00021095,2]
[359118858,1745715051502,-198.3596287,0.00021095,2]
[359118859,1745715051511,-201.75112557,0.00021095,2]
[359118860,1745715051521,-412.83,0.00021095,2]
[359118861,1745715051530,-349.0557565,0.00021095,2]
[359118862,1745715051539,-400.0,0.00021095,2]
[359118863,1745715051548,-3958.94,0.000211,2]
[359118864,1745715051559,-1000.0,0.00021164,2]
[359118865,1745715051569,-1000.0,0.00021304,2]
[359118866,1745715051578,-934.6,0.00021369,2]
[359118867,1745715051588,-582.97,0.00021369,2]
[359118868,1745715051598,-928.51,0.00021369,2]
[359118869,1745715051607,-412.83,0.00021369,2]
[359118870,1745715051617,-400.0,0.00021369,2]
[359118871,1745715051626,-2816.8214417,0.00021602,2]
[359118872,1745715051635,-934.6,0.00021643,2]
[359118873,1745715051645,-582.97,0.00021643,2]
[359118874,1745715051654,-928.51,0.00021643,2]
[359118875,1745715051664,-412.83,0.00021643,2]
[359118876,1745715051675,-400.0,0.00021643,2]
[359118877,1745715051685,-1000.0,0.000218,4]
[359118878,1745715051695,-160.0,0.00021917,2]
[359118879,1745715051704,-934.6,0.00021917,2]
[359118880,1745715051714,-582.97,0.00021917,2]
[359118881,1745715051723,-928.51,0.00021917,2]
[359118882,1745715051733,-412.83,0.00021917,2]
[359118883,1745715051743,-411.04250557,0.00021917,2]
[359118884,1745715051753,-150.0,0.00021918,2]
[359118885,1745715051762,-1000.0,0.00021952,2]
[359118886,1745715051772,-299.96583924,0.00022,2]
[359118887,1745715051781,-160.0,0.00022,8]
[359118888,1745715051791,-2000.0,0.00022,4]
[359118889,1745715051801,-934.6,0.00022191,2]
[359118890,1745715051811,-582.97,0.00022191,2]
[359118891,1745715051821,-928.51,0.00022191,2]
[359118892,1745715051831,-412.83,0.00022191,2]
[359118893,1745715051841,-850.0,0.000222,2]
[359118894,1745715051851,-209.42717831,0.00022216,3]
[359118895,1745715051860,-1000.0,0.00022252,2]
[359118896,1745715051870,-1000.0,0.00022252,2]
[359118897,1745715051879,-1000.0,0.0002226,2]
[359118898,1745715051889,-163.402258,0.00022361,2]
[359118899,1745715051898,-208.85990991,0.00022411,2]
[359118900,1745715051907,-934.6,0.00022465,2]
[359118901,1745715051917,-582.97,0.00022465,2]
[359118902,1745715051928,-928.51,0.00022465,2]
[359118903,1745715051938,-412.83,0.00022465,2]
[359118904,1745715051947,-250.0,0.00022466,2]
[359118905,1745715051956,-900.0,0.00022466,2]
[359118906,1745715051965,-163.402258,0.00022467,3]
[359118907,1745715051975,-8090.35814924,0.0002273,2]
[359118908,1745715051985,-934.60778777,0.00022739,2]
[359118909,1745715051994,-582.99081422,0.00022739,2]
[359118910,1745715052004,-928.60144277,0.00022739,2]
[359118911,1745715052014,-412.90834738,0.00022739,2]
[359118912,1745715052024,-2200.0,0.00022787,2]
[359118913,1745715052033,-3736.89898389,0.000229,2]
[359118914,1745715052042,-900.0,0.00023,2]
[359118915,1745715052052,-160.0,0.00023,11]
[359118916,1745715052062,-4000.0,0.00023,2]
[359118917,1745715052071,-2000.0,0.00023,4]
[359118918,1745715052080,-350.0,0.00023014,2]
[359118919,1745715052090,-1000.0,0.00023253,2]
[359118920,1745715052099,-160.0,0.00023287,2]
[359118921,1745715052109,-1000.0,0.00023356,2]
[359118922,1745715052118,-209.42717831,0.00023479,4]
[359118923,1745715052128,-500.55,0.000235,120]
[359118924,1745715052137,-318.9499,0.000235,2]
[359118925,1745715052146,-573.8674,0.00023526,15]
[359118926,1745715052156,-450.0,0.00023562,2]
[359118927,1745715052166,-5000.0,0.00023602,2]
[359118928,1745715052180,-2000.0,0.000237,2]
[359118929,1745715052190,-200.0,0.0002375,7]
[359118930,1745715052200,-227.10135886,0.0002375,7]
[359118931,1745715052209,-500.55,0.000238,120]
[359118932,1745715052219,-30644.82787273,0.000239,2]
[359118933,1745715052228,-409.94294498,0.0002399,2]
[359118934,1745715052238,-2000.0,0.00024,4]
[359118935,1745715052247,-105467.03362869,0.00024,2]
[359118936,1745715052265,-1105.02589207,0.00024,2]
[359118937,1745715053999,-400.0,0.00016438,2]
[359118938,1745715054009,-40579.04805262,0.00024,2]
[359118939,1745715054021,-1613.0,0.00024,2]
[359118940,1745715054105,-400.0,0.00016438,2]
[359118941,1745715054117,-354.41487442,0.00016712,2]
[359118942,1745715054127,-400.0,0.00016712,2]
[359118943,1745715054136,-194.708,0.00019487,2]
[359118944,1745715054146,-150.894,0.00019487,2]
[359118945,1745715054156,-61307.15568798,0.00024,2]
[359118946,1745715054166,-200.10510528,0.00024,2]
[359118947,1745715054176,-3111.28850144,0.00024,2]
[359118948,1745715054186,-1675.95699902,0.00024,2]
[359118949,1745715054196,-2000.0,0.00024,3]
[359118950,1745715054207,-7191.0,0.00024,2]
[359118951,1745715054336,-500.55,0.00024,120]
[359118952,1745715054350,-160.0,0.00024,14]